fUSD/lending_fUSD_20260301
["ID","MTS","AMOUNT","RATE_DAILY","PERIOD"]
[406969562,1772379046139,-500.0,0.00015468,2]
[406969563,1772379046148,-500.0,0.00015468,2]
[406969564,1772379046158,-251.08451385,0.00015468,2]
[406969565,1772379046168,-7850.47765839,0.00015511,2]
[406969566,1772379046178,-13328.15302569,0.00015511,2]
[406969567,1772379046188,-668.65185757,0.00015523,2]
[406969568,1772379046198,-151.0,0.00015523,2]
[406969569,1772379046208,-166.66,0.00015557,2]
[406969570,1772379046218,-693.3919763,0.00015578,2]
[406969571,1772379046228,-151.0,0.00015578,2]
[406969572,1772379046237,-151.0,0.00015633,2]
[406969573,1772379046247,-151.0,0.00015633,2]
[406969574,1772379046258,-151.0,0.00015633,2]
[406969575,1772379046267,-719.04747942,0.00015633,2]
[406969576,1772379046277,-151.0,0.00015633,2]
[406969578,1772379046286,-745.65223616,0.00015688,2]
[406969579,1772379046296,-151.0,0.00015688,2]
[406969580,1772379046305,-773.2413689,0.00015743,2]
[406969581,1772379046314,-151.0,0.00015743,2]
[406969582,1772379046324,-388.75869273,0.0001575,2]
[406969583,1772379046333,-1574.0,0.00015773,2]
[406969584,1772379046343,-397.0,0.00015773,2]
[406969585,1772379046353,-801.85129955,0.00015798,2]
[406969586,1772379046362,-151.0,0.00015798,2]
[406969587,1772379046371,-379.70251462,0.00015834,2]
[406969588,1772379046381,-831.51979763,0.00015853,2]
[406969589,1772379046390,-151.0,0.00015853,2]
[406969590,1772379046400,-2971.84693567,0.00015875,2]
[406969591,1772379046410,-13334.21590572,0.00015875,2]
[406969592,1772379046420,-1479.36214283,0.00015892,2]
[406969593,1772379046430,-45000.0,0.000159,2]
[406969594,1772379046441,-862.28603014,0.00015908,2]
[406969595,1772379046451,-151.0,0.00015908,2]
[406969596,1772379046461,-433.0,0.00015911,2]
[406969597,1772379046474,-31047.3472895,0.00015939,2]
[406969598,1772379046484,-151.0,0.00015939,2]
[406969599,1772379046496,-894.19061326,0.00015963,2]
[406969600,1772379046506,-151.0,0.00015963,2]
[406969601,1772379046516,-214.78,0.00015987,2]
[406969602,1772379046526,-7850.47765839,0.00015989,2]
[406969603,1772379046536,-13328.15302569,0.00015989,2]
[406969604,1772379046546,-150.0,0.00016,2]
[406969605,1772379046556,-150.0,0.00016,2]
[406969606,1772379046568,-203.734684,0.00016,2]
[406969607,1772379046578,-165.87,0.00016003,2]
[406969608,1772379046587,-308.54,0.00016011,2]
[406969609,1772379046597,-181.08010149,0.00016016,2]
[406969610,1772379046606,-771.01748645,0.00016016,2]
[406969611,1772379046616,-267.46074303,0.00016016,2]
[406969612,1772379046626,-306.30931978,0.00016016,2]
[406969613,1772379046636,-927.27566595,0.00016018,2]
[406969614,1772379046645,-151.0,0.00016018,2]
[406969615,1772379046655,-308.53,0.00016022,2]
[406969616,1772379046665,-961.58486559,0.00016073,2]
[406969617,1772379046674,-151.0,0.00016073,2]
[406969618,1772379046684,-151.0,0.00016082,2]
[406969619,1772379046694,-151.0,0.00016082,2]
[406969620,1772379046703,-151.0,0.00016082,2]
[406969621,1772379046712,-232.222531,0.00016082,2]
[406969622,1772379046723,-700.0,0.00016082,2]
[406969623,1772379046733,-2100.0,0.00016082,2]
[406969624,1772379046743,-217.6,0.00016092,2]
[406969625,1772379046752,-151.0,0.00016103,2]
[406969626,1772379046762,-600.475399,0.00016103,2]
[406969627,1772379046772,-498.116459,0.00016103,2]
[406969628,1772379046783,-600.475399,0.00016103,2]
[406969629,1772379046793,-498.116459,0.00016103,2]
[406969630,1772379046802,-600.475399,0.00016103,2]
[406969631,1772379046812,-498.116459,0.00016103,2]
[406969632,1772379046823,-600.475394,0.00016103,2]
[406969633,1772379046833,-498.116467,0.00016103,2]
[406969634,1772379046843,-151.0,0.00016108,2]
[406969635,1772379046854,-208.23138,0.00016108,2]
[406969636,1772379046866,-166.66,0.00016128,2]
[406969637,1772379046876,-997.16350561,0.00016128,2]
[406969638,1772379046886,-151.0,0.00016128,2]
[406969639,1772379046895,-1000.0,0.00016324,2]
[406969640,1772379046905,-160.0,0.00016336,2]
[406969641,1772379046914,-174.09452548,0.00016336,2]
[406969642,1772379046923,-153.04785948,0.00016348,2]
[406969643,1772379046934,-600.0,0.00016356,2]
[406969644,1772379046944,-6927.5995729,0.00016383,2]
[406969645,1772379046953,-845.0,0.000164,2]
[406969646,1772379046963,-150.0,0.0001641,2]
[406969647,1772379046973,-165.5,0.00016438,2]
[406969648,1772379046983,-991.0,0.00016438,2]
[406969649,1772379046992,-900.0,0.00016438,2]
[406969650,1772379047002,-151.0,0.00016438,2]
[406969651,1772379047011,-151.0,0.00016438,2]
[406969652,1772379047021,-151.0,0.00016438,2]
[406969653,1772379047031,-151.0,0.00016438,2]
[406969654,1772379047041,-151.0,0.00016438,2]
[406969655,1772379047050,-151.0,0.00016438,2]
[406969656,1772379047060,-151.0,0.00016438,2]
[406969657,1772379047069,-151.0,0.00016438,2]
[406969658,1772379047079,-151.0,0.00016438,2]
[406969659,1772379047089,-151.0,0.00016438,2]
[406969660,1772379047099,-157.067351,0.00016438,2]
[406969661,1772379047108,-151.0,0.00016438,2]
[406969662,1772379047118,-151.0,0.00016438,2]
[406969663,1772379047128,-151.0,0.00016438,2]
[406969664,1772379047137,-187.815651,0.00016438,2]
[406969665,1772379047147,-582.04396,0.00016438,2]
[406969666,1772379047157,-582.04396,0.00016438,2]
[406969667,1772379047167,-582.04396,0.00016438,2]
[406969668,1772379047177,-582.04396,0.00016438,2]
[406969669,1772379047186,-582.04396,0.00016438,2]
[406969670,1772379047196,-582.04396,0.00016438,2]
[406969671,1772379047205,-582.04396,0.00016438,2]
[406969672,1772379047215,-582.04396,0.00016438,2]
[406969673,1772379047224,-582.04396,0.00016438,2]
[406969674,1772379047234,-582.04396,0.00016438,2]
[406969675,1772379047244,-582.04396,0.00016438,2]
[406969676,1772379047254,-582.04396,0.00016438,2]
[406969677,1772379047263,-582.04396,0.00016438,2]
[406969678,1772379047273,-582.04396,0.00016438,2]
[406969679,1772379047283,-582.04396,0.00016438,2]
[406969680,1772379047292,-582.04396,0.00016438,2]
[406969681,1772379047301,-582.04396,0.00016438,2]
[406969682,1772379047311,-582.04396,0.00016438,2]
[406969683,1772379047320,-582.04396,0.00016438,2]
[406969684,1772379047330,-582.04396,0.00016438,2]
[406969685,1772379047339,-222.117513,0.00016438,2]
[406969686,1772379047348,-222.117513,0.00016438,2]
[406969687,1772379047358,-222.117513,0.00016438,2]
[406969688,1772379047368,-222.117513,0.00016438,2]
[406969689,1772379047377,-222.117513,0.00016438,2]
[406969690,1772379047386,-222.117513,0.00016438,2]
[406969691,1772379047395,-222.117513,0.00016438,2]
[406969692,1772379047404,-222.117513,0.00016438,2]
[406969693,1772379047414,-222.117513,0.00016438,2]
[406969694,1772379047423,-222.117513,0.00016438,2]
[406969695,1772379047433,-222.117513,0.00016438,2]
[406969696,1772379047442,-222.117513,0.00016438,2]
[406969697,1772379047451,-222.117513,0.00016438,2]
[406969698,1772379047462,-222.117513,0.00016438,2]
[406969699,1772379047473,-222.117513,0.00016438,2]
[406969700,1772379047482,-222.117513,0.00016438,2]
[406969701,1772379047491,-222.117513,0.00016438,2]
[406969702,1772379047595,-222.117513,0.00016438,2]
[406969703,1772379047605,-222.117513,0.00016438,2]
[406969704,1772379047615,-222.117521,0.00016438,2]
[406969705,1772379047625,-151.577509,0.00016438,2]
[406969706,1772379047634,-151.0,0.00016438,2]
[406969707,1772379047644,-151.0,0.00016438,2]
[406969708,1772379047654,-151.0,0.00016438,2]
[406969709,1772379047664,-151.0,0.00016438,2]
[406969710,1772379047673,-201.691028,0.00016438,2]
[406969711,1772379047682,-150.0,0.00016442,2]
[406969712,1772379047691,-7850.47765839,0.00016467,2]
[406969713,1772379047701,-13328.15302569,0.00016467,2]
[406969714,1772379047711,-162.41,0.0001649,2]
[406969715,1772379047721,-991.0,0.00016493,2]
[406969716,1772379047730,-1753.4655262,0.00016499,2]
[406969717,1772379047739,-993.0,0.000165,2]
[406969718,1772379047749,-287.24701665,0.00016508,2]
[406969719,1772379047758,-300.0,0.00016508,2]
[406969720,1772379047768,-151.0,0.00016509,2]
[406969721,1772379047778,-152.0,0.00016509,2]
[406969722,1772379047787,-152.0,0.00016509,2]
[406969723,1772379047797,-152.0,0.00016509,2]
[406969724,1772379047807,-1512.0,0.00016509,2]
[406969725,1772379047817,-1512.0,0.00016509,2]
[406969726,1772379047827,-151.0,0.00016509,2]
[406969727,1772379047837,-151.0,0.00016509,2]
[406969728,1772379047847,-151.0,0.00016509,2]
[406969729,1772379047858,-1512.0,0.00016509,2]
[406969730,1772379047871,-151.0,0.00016509,2]
[406969731,1772379047881,-151.0,0.00016509,2]
[406969732,1772379047891,-1512.0,0.00016509,2]
[406969733,1772379047902,-159.06023003,0.00016509,2]
[406969734,1772379047913,-151.0,0.00016509,2]
[406969735,1772379047923,-1512.0,0.00016509,2]
[406969736,1772379047935,-151.0,0.00016509,2]
[406969737,1772379047945,-1512.0,0.00016509,2]
[406969738,1772379047956,-151.0,0.00016509,2]
[406969739,1772379047965,-1512.0,0.00016509,2]
[406969740,1772379047975,-151.0,0.00016509,2]
[406969741,1772379047985,-151.0,0.00016509,2]
[406969742,1772379047994,-1512.0,0.00016509,2]
[406969743,1772379048005,-151.0,0.00016509,2]
[406969744,1772379048014,-1512.0,0.00016509,2]
[406969745,1772379048024,-250.72418667,0.00016509,2]
[406969746,1772379048033,-1512.0,0.00016509,2]
[406969747,1772379048043,-1512.0,0.00016509,2]
[406969748,1772379048053,-1512.0,0.00016509,2]
[406969749,1772379048063,-1512.0,0.00016509,2]
[406969750,1772379048073,-1512.0,0.00016509,2]
[406969751,1772379048082,-1512.0,0.00016509,2]
[406969752,1772379048092,-1512.0,0.00016509,2]
[406969753,1772379048101,-1512.0,0.00016509,2]
[406969754,1772379048111,-1512.0,0.00016509,2]
[406969755,1772379048121,-1512.0,0.00016509,2]
[406969756,1772379048130,-1512.0,0.00016509,2]
[406969757,1772379048140,-1512.0,0.00016509,2]
[406969758,1772379048149,-1512.0,0.00016509,2]
[406969759,1772379048159,-1512.0,0.00016509,2]
[406969760,1772379048168,-946.22739329,0.00016509,2]
[406969761,1772379048178,-151.0,0.00016509,2]
[406969762,1772379048187,-151.0,0.00016509,2]
[406969763,1772379048197,-151.0,0.00016509,2]
[406969764,1772379048206,-1480.3363685,0.00016521,2]
[406969765,1772379048216,-991.0,0.00016548,2]
[406969766,1772379048225,-1123.5952541,0.00016554,2]
[406969767,1772379048235,-187.78006525,0.00016564,2]
[406969768,1772379048244,-799.54513345,0.00016564,2]
[406969769,1772379048253,-277.35679052,0.00016564,2]
[406969770,1772379048263,-150.0,0.00016595,2]
[406969771,1772379048272,-991.0,0.00016602,2]
[406969772,1772379048282,-150.0,0.00016604,2]
[406969773,1772379048291,-1600.0,0.00016617,2]
[406969774,1772379048301,-150.0,0.00016619,2]
[406969775,1772379048310,-300.0,0.0001663,2]
[406969776,1772379048320,-29846.1722246,0.00016631,2]
[406969777,1772379048329,-991.0,0.00016657,2]
[406969778,1772379048338,-363.44896243,0.00016663,7]
[406969779,1772379048347,-2000.0,0.000167,2]
[406969780,1772379048357,-991.0,0.00016712,2]
[406969781,1772379048366,-165.5,0.00016712,2]
[406969782,1772379048376,-166.1,0.00016712,2]
[406969783,1772379048386,-991.0,0.00016767,2]
[406969784,1772379048395,-200.15445162,0.00016792,2]
[406969785,1772379048405,-180.0,0.00016803,2]
[406969786,1772379048414,-180.0,0.00016811,2]
[406969787,1772379048424,-991.0,0.00016822,2]
[406969788,1772379048434,-1278.0,0.00016865,2]
[406969789,1772379048443,-150.0,0.00016865,2]
[406969790,1772379048452,-921.0,0.00016865,2]
[406969791,1772379048462,-1211.0,0.00016865,2]
[406969792,1772379048473,-1323.0,0.00016865,2]
[406969793,1772379048482,-2488.408,0.00016865,2]
[406969794,1772379048492,-3500.0,0.00016865,2]
[406969795,1772379048501,-1340.0,0.00016865,2]
[406969796,1772379048511,-644.0,0.00016874,2]
[406969797,1772379048521,-150.0,0.00016874,2]
[406969798,1772379048530,-150.0,0.00016874,2]
[406969799,1772379048539,-150.0,0.00016874,2]
[406969800,1772379048549,-296.0,0.00016874,2]
[406969801,1772379048558,-991.0,0.00016876,2]
[406969802,1772379048567,-168.0,0.00016887,2]
[406969803,1772379048577,-2000.0,0.000169,2]
[406969804,1772379048588,-991.0,0.00016931,2]
[406969805,1772379048597,-150.0,0.00016943,2]
[406969806,1772379048607,-7850.47765839,0.00016944,2]
[406969807,1772379048616,-13328.15302569,0.00016944,2]
[406969808,1772379048625,-206.0,0.00016948,2]
[406969809,1772379048635,-500.0,0.00016959,2]
[406969810,1772379048645,-300.0,0.00016966,2]
[406969811,1772379048654,-991.0,0.00016986,2]
[406969812,1772379048664,-165.5,0.00016986,2]
[406969813,1772379048674,-300.0,0.00016999,2]
[406969814,1772379048683,-17794.89196462,0.00017,2]
[406969815,1772379048867,-599.99908632,0.00017,2]
[406969816,1772379048922,-172.96152198,0.00015068,2]
[406969817,1772379048933,-3189.33847802,0.00017,2]
[406969818,1772379048945,-614.59555,0.00017,2]
[406969819,1772379048958,-872.25527299,0.00017,2]
[406969855,1772380231570,-158.05,0.00012256,2]
[406969856,1772380231580,-3219.87,0.00012445,2]
[406969857,1772380231590,-363.2155474,0.00012538,2]
[406969858,1772380231600,-150.0,0.00013586,2]
[406969859,1772380231610,-300.0,0.00013586,2]
[406969860,1772380231619,-1200.0,0.00013586,2]
[406969861,1772380231629,-13121.04902627,0.00013587,2]
[406969862,1772380231757,-19770.39307373,0.00013587,2]
[406969863,1772380231767,-1000.0,0.00013587,2]
[406969864,1772380231776,-58921.7409,0.00013587,2]
[406969865,1772380231786,-150.505619,0.00013873,7]
[406969866,1772380231797,-1000.0,0.00013967,2]
[406969867,1772380231808,-733.851,0.00013967,2]
[406969868,1772380231819,-519.0,0.0001411,2]
[406969869,1772380231829,-7299.33783601,0.0001429,7]
[406969870,1772380231841,-3369.84185509,0.0001429,7]
[406969871,1772380231852,-2082.50080007,0.00014457,2]
[406969872,1772380231862,-255.0,0.000147,2]
[406969873,1772380231873,-388.42,0.00014727,2]
[406969874,1772380231894,-3240.0,0.00014769,2]
[406969875,1772380231915,-150.0,0.00014777,2]
[406969876,1772380231929,-2586.18,0.00014789,2]
[406969877,1772380231940,-1000.0,0.00014804,2]
[406969879,1772380231953,-200.0,0.00014816,2]
[406969881,1772380231963,-644.79446246,0.00014893,2]
[406969883,1772380231974,-578.20924308,0.00014893,2]
[406969884,1772380231985,-500.0,0.00014893,2]
[406969886,1772380231996,-500.0,0.00014893,2]
[406969889,1772380232009,-743.50770149,0.00014893,2]
[406969890,1772380232020,-174.61919141,0.00014893,2]
[406969893,1772380232034,-500.0,0.00014893,2]
[406969895,1772380232044,-500.0,0.00014893,2]
[406969897,1772380232054,-500.0,0.00014893,2]
[406969899,1772380232065,-500.0,0.00014893,2]
[406969901,1772380232075,-442.19135025,0.00014893,2]
[406969903,1772380232089,-57.80864975,0.00014893,2]
[406969905,1772380232098,-500.0,0.00014893,2]
[406969907,1772380232109,-500.0,0.00014893,2]
[406969909,1772380232118,-500.0,0.00014893,2]
[406969911,1772380232127,-500.0,0.00014893,2]
[406969913,1772380232138,-500.0,0.00014893,2]
[406969914,1772380232148,-500.0,0.00014893,2]
[406969915,1772380232159,-257.91778498,0.00014893,2]
[406969916,1772380232169,-668.65185757,0.00014948,2]
[406969917,1772380232181,-5057.77428372,0.00014995,2]
[406969918,1772380232193,-489.02572895,0.00014995,2]
[406969919,1772380232207,-353.5,0.00014995,2]
[406969920,1772380232224,-3535.58998733,0.00014995,2]
[406969921,1772380232233,-250.0,0.00015,2]
[406969922,1772380232243,-693.3919763,0.00015003,2]
[406969923,1772380232254,-253.51235959,0.00015058,2]
[406969925,1772380237752,-465.53511983,0.00015058,2]
[406969926,1772380237762,-745.65223616,0.00015113,2]
[406969927,1772380237772,-773.2413689,0.00015168,2]
[406969928,1772380237782,-801.85129955,0.00015223,2]
[406969929,1772380237791,-1884.71997556,0.0001524,2]
[406969930,1772380237812,-950.98,0.0001524,2]
[406969944,1772380238149,-997.91895596,0.0001524,2]
[406970162,1772380240508,-1023.24592403,0.0001524,2]
[406970165,1772380240520,-410.5488391,0.0001524,2]
[406970391,1772380242987,-1263.00630535,0.0001524,2]
[406970392,1772380242996,-76.99369465,0.00015262,2]
[406970414,1772380245675,-83.79630535,0.00015262,2]
[406970415,1772380245684,-475.84089423,0.00015278,2]
[406970421,1772380777129,3175.74688358,9e-05,2]
[406970436,1772381431806,-166.66,0.00013759,2]
[406970438,1772381431816,-600.0,0.00013795,2]
[406970439,1772381431826,-1233.34000001,0.00013832,2]
[406970440,1772381431839,-1266.65999999,0.00013832,2]
[406970441,1772381431849,-133.34000001,0.00013903,2]
[406970442,1772381431863,-1066.65999999,0.00013903,2]
[406970443,1772381431877,-452.13195813,0.00013904,2]
[406970444,1772381431890,-147.86804187,0.00013904,2]
[406970445,1772381431900,-600.0,0.00013904,2]
[406970446,1772381431911,-202.82877489,0.00013904,2]
[406970447,1772381431942,-397.17122511,0.00013904,2]
[406970448,1772381431953,-300.0,0.00013975,2]
[406970449,1772381431963,-300.0,0.00013975,2]
[406970450,1772381431974,-2500.0,0.00013976,2]
[406970451,1772381431985,-2539.93718242,0.00013976,2]
[406970452,1772381431996,-166.66,0.00014049,2]
[406970453,1772381432007,-200.29793653,0.00014081,2]
[406970454,1772381432018,-519.0,0.0001411,2]
[406970455,1772381432028,-166.66,0.00014338,2]
[406970456,1772381432043,-3710.23336006,0.00014386,2]
[406970457,1772381432054,-5207.56297491,0.00014386,2]
[406970459,1772381432067,-9782.20366503,0.00014386,2]
[406970461,1772381432077,-150.99,0.00014504,2]
[406970462,1772381432093,-9999.99,0.00014504,2]
[406970463,1772381432102,-1818.76541747,0.00014504,2]
[406970464,1772381432114,-8181.22458253,0.00014504,2]
[406970465,1772381432124,-150.99,0.00014504,2]
[406970466,1772381432135,-9999.99,0.00014504,2]
[406970467,1772381432144,-9999.99,0.00014504,2]
[406970469,1772381432153,-8712.46,0.00014504,2]
[406970471,1772381432163,-299.99,0.00014504,2]
[406970472,1772381432174,-999.99,0.00014504,2]
[406970473,1772381432184,-250.0,0.00014538,2]
[406970474,1772381432194,-290.0,0.00014538,2]
[406970475,1772381432203,-236.0,0.00014567,2]
[406970476,1772381432213,-166.66,0.00014628,2]
[406970477,1772381432223,-176.297923,0.0001463,7]
[406970478,1772381432233,-200.0,0.00014675,2]
[406970479,1772381432243,-1236.63,0.00014687,2]
[406970480,1772381432253,-500.0,0.0001471,2]
[406970481,1772381432263,-7887.9704122,0.00014817,2]
[406970482,1772381432273,-195.6255218,0.00014817,2]
[406970483,1772381432283,-166.66,0.00014918,2]
[406970484,1772381432296,-250.0,0.00015,2]
[406970485,1772381432306,-2000.0,0.00015,2]
[406970486,1772381432316,-2500.0,0.00015135,2]
[406970487,1772381432325,-600.0,0.00015135,2]
[406970488,1772381432335,-2500.0,0.00015135,2]
[406970489,1772381432345,-286.24752804,0.00015135,2]
[406970490,1772381432354,-193.55068996,0.00015135,2]
[406970491,1772381432364,-310.74,0.00015149,2]
[406970492,1772381432374,-500.0,0.00015158,2]
[406970493,1772381432561,-635.00114152,0.00015158,2]
[406970494,1772381432578,-9.79332094,0.00015158,2]
[406970495,1772381432589,-174.61919141,0.00015158,2]
[406970496,1772381432599,-578.20924308,0.00015158,2]
[406970497,1772381432609,-257.91778498,0.00015158,2]
[406970498,1772381432618,-166.66,0.00015207,2]
[406970499,1772381432629,-668.65185757,0.00015213,2]
[406970500,1772381432638,-693.3919763,0.00015268,2]
[406970501,1772381432649,-200.0,0.00015278,2]
[406970502,1772381432658,-151.0,0.00015278,2]
[406970503,1772381432667,-200.0,0.00015285,2]
[406970504,1772381432677,-719.04747942,0.00015323,2]
[406970505,1772381432686,-743.50770149,0.00015375,2]
[406970506,1772381432696,-745.65223616,0.00015378,2]
[406970507,1772381432706,-4000.0,0.00015384,2]
[406970508,1772381432715,-200.0,0.00015431,2]
[406970509,1772381432724,-773.2413689,0.00015433,2]
[406970510,1772381432734,-801.85129955,0.00015488,2]
[406970511,1772381432744,-831.51979763,0.00015543,2]
[406970512,1772381432753,-200.0,0.00015585,2]
[406970513,1772381432762,-862.28603014,0.00015598,2]
[406970514,1772381432772,-700.0,0.000156,5]
[406970515,1772381432782,-2000.0,0.000156,2]
[406970516,1772381432792,-2000.0,0.000156,2]
[406970517,1772381432802,-166.66,0.00015618,2]
[406970518,1772381432811,-894.19061326,0.00015653,2]
[406970519,1772381432821,-584.06,0.00015674,2]
[406970520,1772381432831,-1400.0,0.000157,5]
[406970521,1772381432840,-181.08010149,0.00015706,2]
[406970522,1772381432850,-267.46074303,0.00015706,2]
[406970523,1772381432859,-927.27566595,0.00015708,2]
[406970524,1772381432869,-200.0,0.00015741,2]
[406970525,1772381432879,-961.58486559,0.00015763,2]
[406970526,1772381432888,-4000.0,0.00015769,2]
[406970527,1772381432898,-2000.0,0.000158,2]
[406970528,1772381432908,-2100.0,0.000158,5]
[406970529,1772381432917,-997.16350561,0.00015818,2]
[406970530,1772381432926,-200.0,0.00015898,2]
[406970531,1772381432936,-2800.0,0.000159,5]
[406970532,1772381432946,-2500.0,0.00015915,2]
[406970533,1772381432955,-5000.0,0.00015916,2]
[406970534,1772381432965,-771.01748645,0.00015923,2]
[406970535,1772381432974,-1412.58003548,0.0001594,2]
[406970536,1772381432987,-1849.86883374,0.0001594,2]
[406970537,1772381432996,-990.61564523,0.00015982,2]
[406970538,1772381433006,-5891.34781184,0.00015982,2]
[406970539,1772381433016,-4444.73863524,0.00015982,2]
[406970540,1772381433025,-3134.57948615,0.00015982,2]
[406970541,1772381433035,-189.85125731,0.00015982,2]
[406970542,1772381433045,-51718.82945079,0.00016015,2]
[406970543,1772381433056,-500.0,0.00016015,2]
[406970544,1772381433066,-500.0,0.00016015,2]
[406970545,1772381433076,-235.50645071,0.00016015,2]
[406970546,1772381433085,-500.0,0.00016015,2]
[406970547,1772381433095,-160.88049104,0.00016015,2]
[406970548,1772381433104,-500.0,0.00016015,2]
[406970549,1772381433114,-500.0,0.00016015,2]
[406970550,1772381433123,-500.0,0.00016015,2]
[406970551,1772381433132,-522.44102661,0.00016015,2]
[406970552,1772381433141,-500.0,0.00016015,2]
[406970553,1772381433150,-500.0,0.00016015,2]
[406970554,1772381433160,-500.0,0.00016015,2]
[406970555,1772381433170,-500.0,0.00016015,2]
[406970556,1772381433179,-6600.0,0.00016016,2]
[406970557,1772381433188,-548.2623,0.00016016,2]
[406970558,1772381433198,-1000.0,0.00016016,2]
[406970559,1772381433207,-621.05611262,0.00016016,2]
[406970560,1772381433219,-1167.13969956,0.00016016,2]
[406970561,1772381433230,-579.5421516,0.00016016,2]
[406970562,1772381433241,-1963.57941845,0.00016016,2]
[406970563,1772381437930,-194.92304397,0.00016016,2]
[406970564,1772381437941,-3431.18675314,0.00016016,2]
[406970565,1772381437952,-690.45,0.00016016,2]
[406970577,1772381440158,-400.0,0.00016016,2]
[406970578,1772381440170,-504.83279626,0.00016016,2]
[406970579,1772381440181,-277.740004,0.00016016,2]
[406970580,1772381440421,-9335.25072191,0.00016016,2]
[406970581,1772381440433,-11255.36300002,0.00016016,2]
[406970582,1772381440445,-6374.15404098,0.00016016,2]
[406970583,1772381440456,-545.70391948,0.00016016,2]
[406970584,1772381440467,-11.21438198,0.00016016,2]
[406970585,1772381440476,-5409.43617458,0.00016016,2]
[406970586,1772381440598,-4714.53238845,0.00016016,2]
[406970700,1772381443048,-900.6144,0.00016016,2]
[406970712,1772381446114,-27427.31524041,0.00016016,2]
[406970713,1772381446125,-29410.31884053,0.00016016,2]
[406970726,1772381536543,500.0,9.003e-05,2]
[406970727,1772381537029,500.0,9.003e-05,2]
[406970728,1772381541939,500.0,9.003e-05,2]
[406970729,1772381542581,500.0,9.003e-05,2]
[406970730,1772381543077,632.44577495,9.003e-05,2]
[406970731,1772381545591,500.0,9.003e-05,2]
[406970732,1772381546070,500.0,9.003e-05,2]
[406970733,1772381546860,500.0,9.003e-05,2]
[406970734,1772381553040,500.0,9.003e-05,2]
[406970735,1772381553489,517.7493115,9.003e-05,2]
[406970736,1772381554523,500.0,9.003e-05,2]
[406970737,1772381555033,500.0,9.003e-05,2]
[406970738,1772381555546,500.0,9.003e-05,2]
[406970739,1772381556038,500.0,9.003e-05,2]
[406970740,1772381556549,651.35196005,9.003e-05,2]
[406970741,1772381557439,500.0,9.003e-05,2]
[406970743,1772382268069,-217.11483197,0.0001181,2]
[406970744,1772382268097,-247.0,0.0001191,2]
[406970745,1772382268127,-294.73166015,0.00012058,2]
[406970746,1772382268158,-500.0,0.0001207,2]
[406970747,1772382268189,-500.0,0.0001207,2]
[406970748,1772382268222,-500.0,0.0001207,2]
[406970749,1772382268252,-500.0,0.0001207,2]
[406970750,1772382268281,-500.0,0.0001207,2]
[406970751,1772382268309,-500.0,0.0001207,2]
[406970752,1772382268341,-851.56555211,0.0001207,2]
[406970753,1772382268372,-500.0,0.0001207,2]
[406970754,1772382268400,-504.04222443,0.0001207,2]
[406970755,1772382268439,-500.0,0.0001207,2]
[406970756,1772382268469,-500.0,0.0001207,2]
[406970757,1772382268500,-500.0,0.0001207,2]
[406970758,1772382268528,-500.0,0.0001207,2]
[406970759,1772382268557,-500.0,0.0001207,2]
[406970760,1772382268585,-500.0,0.0001207,2]
[406970761,1772382268613,-500.0,0.0001207,2]
[406970762,1772382268641,-500.0,0.0001207,2]
[406970763,1772382268670,-500.0,0.0001207,2]
[406970764,1772382268699,-522.48116495,0.0001207,2]
[406970765,1772382268728,-500.0,0.0001207,2]
[406970766,1772382268755,-500.0,0.0001207,2]